bitfinex-derivatives/quotes_SOLF0:USTF0_20241025
["timestamp","ask_amount","ask_price","bid_price","bid_amount"]
[1729830150346,12.47046173,173.42,173.35,6.0]
[1729830150545,2.885,173.39,173.35,6.0]
[1729830151046,2.885,173.39,173.35,8.8855]
[1729830151651,12.47046173,173.42,173.35,6.0]
[1729830151853,12.47046173,173.4,173.33,4.9125]
[1729830152046,12.47046173,173.38,173.33,4.9125]
[1729830152252,12.47046173,173.38,173.28,12.47046173]
[1729830152253,2.8857,173.35,173.34,6.0]
[1729830156055,15.35616173,173.35,173.27,2.8869]
[1729830156353,2.8862,173.32,173.28,6.0]
[1729830156946,2.8862,173.32,173.28,8.8867]
[1729830157154,2.8862,173.32,173.29,5.68]
[1729830157754,2.886,173.33,173.29,5.68]
[1729830159851,2.886,173.33,173.3,5.68]
[1729830160054,2.8862,173.32,173.3,5.68]
[1729830161653,12.47046173,173.35,173.3,5.68]
[1729830162360,12.47046173,173.31,173.28,5.68]
[1729830162563,12.47046173,173.31,173.27,5.68]
[1729830162755,2.8865,173.3,173.27,5.68]
[1729830162950,12.47046173,173.31,173.27,5.68]
[1729830163352,12.47046173,173.31,173.24,2.8873]
[1729830163556,12.47046173,173.31,173.25,5.68]
[1729830164261,2.8867,173.29,173.25,5.68]
[1729830164460,12.47046173,173.31,173.25,5.68]
[1729830164765,12.47046173,173.31,173.25,8.5672]
[1729830165060,12.47046173,173.31,173.25,2.8872]
[1729830165257,12.47046173,173.31,173.26,5.68]
[1729830166261,2.8868,173.28,173.26,5.68]
[1729830166760,12.47046173,173.31,173.26,5.68]
[1729830167261,2.8868,173.28,173.26,5.68]
[1729830167759,2.8865,173.3,173.26,5.68]
[1729830167955,12.47046173,173.31,173.26,5.68]
[1729830169048,2.886,173.33,173.26,8.5669]
[1729830169254,349.47046173,173.38,173.27,12.47046173]
[1729830169559,12.47046173,173.38,173.27,12.47046173]
[1729830169763,2.4505,173.39,173.29,12.47046173]
[1729830170060,12.47046173,173.4,173.3,2.3841]
[1729830170263,7.98247714,173.38,173.33,7.98247714]
[1729830170871,10.86767714,173.38,173.33,7.98247714]
[1729830171463,2.8853,173.37,173.33,7.98247714]
[1729830172261,2.8853,173.37,173.31,8.5662]
[1729830172759,12.47349524,173.4,173.31,5.68]
[1729830172963,2.8854,173.36,173.31,5.68]
[1729830173359,12.47349524,173.38,173.3,7.6172]
[1729830173565,2.8855,173.36,173.31,5.68]
[1729830174467,2.8851,173.38,173.33,2.8858]
[1729830175368,12.47349524,173.41,173.31,5.68]
[1729830175568,2.885,173.39,173.34,2.8857]
[1729830179165,12.47349524,173.43,173.34,12.47349524]
[1729830179370,2.8847,173.41,173.36,2.8853]
[1729830179868,12.47349524,173.46,173.35,5.68]
[1729830180077,12.47349524,173.46,173.35,8.1301]
[1729830180569,9.31105622,173.46,173.35,8.1301]
[1729830180967,2.519,173.48,173.39,12.47349524]
[1729830181177,2.519,173.48,173.4,5.68]
[1729830181676,2.884,173.45,173.4,8.5647]
[1729830182376,12.47349524,173.49,173.4,8.5647]
[1729830182377,2.8836,173.47,173.41,2.8845]
[1729830182875,12.47349524,173.49,173.41,2.8845]
[1729830183072,12.47349524,173.49,173.4,10.5269]
[1729830183073,2.8837,173.47,173.4,10.5269]
[1729830183272,12.47349524,173.46,173.4,10.5269]
[1729830183677,2.8842,173.44,173.4,10.5269]
[1729830184365,12.47349524,173.42,173.38,5.68]
[1729830184781,2.8848,173.4,173.38,5.68]
[1729830185070,12.47349524,173.42,173.38,5.68]
[1729830185299,2.8855,173.36,173.33,62.32]
[1729830185465,12.47349524,173.4,173.24,12.47349524]
[1729830185466,12.47349524,173.35,173.24,12.47349524]
[1729830185664,12.47349524,173.33,173.22,10.7611]
[1729830185865,5.68,173.38,173.23,8.5675]
[1729830185866,2.8866,173.29,173.23,8.5675]
[1729830186167,12.47349524,173.31,173.23,8.5675]
[1729830186769,5.68,173.38,173.25,2.8871]
[1729830186770,12.47349524,173.33,173.25,2.8871]
[1729830187076,12.47349524,173.33,173.23,18.15349524]
[1729830187277,2.8859,173.33,173.25,12.47349524]
[1729830187775,12.47349524,173.37,173.25,12.47349524]
[1729830187973,12.47349524,173.37,173.29,2.8865]
[1729830188276,12.47349524,173.37,173.3,5.56]
[1729830188482,2.8861,173.32,173.3,5.56]
[1729830188975,12.47349524,173.31,173.24,5.56]
[1729830189171,2.8866,173.29,173.24,5.56]
[1729830189679,2.8868,173.28,173.24,5.56]
[1729830191275,12.47349524,173.31,173.21,71.57984188]
[1729830191474,12.47349524,173.26,173.21,9.25984188]
[1729830191879,2.8875,173.24,173.21,9.25984188]
[1729830192085,12.47349524,173.26,173.21,9.25984188]
[1729830193884,2.8876,173.23,173.21,9.25984188]
[1729830194977,2.8878,173.22,173.21,9.25984188]
[1729830195373,15.36089524,173.24,173.21,9.25984188]
[1729830195575,12.47349524,173.24,173.21,9.25984188]
[1729830196081,2.8878,173.22,173.21,9.25984188]
[1729830197372,12.47349524,173.24,173.21,9.25984188]
[1729830197583,5.58,173.27,173.21,9.25984188]
[1729830197885,18.05349524,173.27,173.21,9.25984188]
[1729830198183,2.3682,173.3,173.21,9.25984188]
[1729830198578,15.02339524,173.31,173.22,12.47349524]
[1729830198790,2.5499,173.31,173.24,2.8873]
[1729830199089,2.8863,173.31,173.22,15.04019524]
[1729830199387,2.8863,173.31,173.24,2.8874]
[1729830199581,2.8863,173.31,173.25,5.58]
[1729830200981,12.47349524,173.34,173.22,17.42399524]
[1729830201179,12.47349524,173.29,173.22,2.5667]
[1729830201693,12.47349524,173.29,173.21,17.43704188]
[1729830201876,2.8869,173.27,173.21,17.43704188]
[1729830202486,2.8869,173.27,173.21,20.32484188]
[1729830203385,2.8869,173.27,173.21,14.74484188]
[1729830203588,2.8869,173.27,173.21,20.32484188]
[1729830203788,2.8871,173.26,173.21,17.43704188]
[1729830204881,12.47349524,173.29,173.21,17.43704188]
[1729830205085,2.8869,173.27,173.21,20.32494188]
[1729830205991,337.0,173.34,173.22,12.47349524]
[1729830206284,355.05349524,173.34,173.24,12.47349524]
[1729830206792,349.47349524,173.34,173.24,12.47349524]
[1729830208078,349.47349524,173.34,173.25,2.8871]
[1729830208283,349.47349524,173.34,173.24,12.47349524]
[1729830208284,12.47349524,173.34,173.24,12.47349524]
[1729830208683,2.8858,173.34,173.28,2.8867]
[1729830208889,15.04319524,173.36,173.27,5.58]
[1729830209291,2.8858,173.34,173.28,2.8866]
[1729830209589,2.5697,173.36,173.28,18.05349524]
[1729830209788,5.4552,173.36,173.3,2.8863]
[1729830210888,337.0,173.39,173.3,12.47349524]
[1729830211491,2.8854,173.37,173.3,15.35979524]
[1729830211685,349.47349524,173.39,173.3,2.8863]
[1729830212091,349.47349524,173.39,173.31,2.8862]
[1729830212494,349.47349524,173.39,173.28,18.05349524]
[1729830212694,349.47349524,173.39,173.29,2.8865]
[1729830212695,2.8855,173.36,173.29,2.8865]
[1729830213087,2.8855,173.36,173.28,18.05349524]
[1729830213290,2.8855,173.36,173.3,2.8863]
[1729830214893,2.8855,173.36,173.3,8.4663]
[1729830215096,12.47349524,173.39,173.3,8.4663]
[1729830215295,12.47349524,173.37,173.3,5.58]
[1729830215885,12.47349524,173.33,173.27,5.36]
[1729830216091,12.47349524,173.33,173.23,64.7895]
[1729830216293,2.8866,173.29,173.24,5.36]
[1729830216596,12.47349524,173.28,173.24,5.36]
[1729830217495,2.8869,173.27,173.24,5.36]
[1729830218494,15.36029524,173.28,173.24,5.36]
[1729830219899,2.8864,173.31,173.26,2.887]
[1729830220898,2.8864,173.31,173.25,2.8872]
[1729830221600,337.0,173.34,173.24,5.36]
[1729830221806,2.886,173.33,173.27,2.8868]
[1729830224998,337.0,173.34,173.27,12.47349524]
[1729830225797,337.0,173.34,173.24,7.9511]
[1729830225798,2.8855,173.36,173.29,12.47349524]
[1729830225992,2.8855,173.36,173.3,5.36]
[1729830226804,2.8855,173.36,173.31,2.8862]
[1729830228704,12.47349524,173.37,173.3,5.36]
[1729830229304,2.8857,173.35,173.3,5.36]
[1729830229506,12.47349524,173.37,173.3,5.36]
[1729830229811,2.8857,173.35,173.3,5.36]
[1729830232010,12.47349524,173.37,173.33,2.8859]
[1729830232211,12.47349524,173.37,173.3,5.36]
[1729830232821,2.8857,173.35,173.3,8.2463]
[1729830233516,12.47349524,173.37,173.3,5.36]
[1729830233719,2.8854,173.36,173.31,2.8862]
[1729830234414,2.8854,173.37,173.32,2.886]
[1729830234619,2.4712,173.4,173.31,12.47349524]
[1729830234816,339.5742,173.46,173.34,12.47349524]
[1729830235019,0.9801912,173.45,173.35,5.36]
[1729830236119,5.1692,173.48,173.37,2.8852]
[1729830236120,2.8845,173.42,173.37,2.8852]
[1729830236311,12.47349524,173.47,173.36,14.99279524]
[1729830236517,12.47349524,173.47,173.38,12.47349524]
[1729830237114,2.8839,173.46,173.38,12.47349524]
[1729830237311,2.5903,173.48,173.39,2.4966]
[1729830237521,2.5903,173.48,173.4,5.36]
[1729830237729,2.8837,173.47,173.41,2.8845]
[1729830238428,15.04769524,173.52,173.4,17.83349524]
[1729830238623,2.8835,173.48,173.42,2.8844]
[1729830239217,15.04769524,173.52,173.42,2.8844]
[1729830239422,2.8836,173.47,173.42,2.8844]
[1729830240622,15.04769524,173.52,173.42,12.47349524]
[1729830240623,2.5742,173.52,173.42,12.47349524]
[1729830241017,2.8831,173.5,173.44,2.884]
[1729830241219,2.8831,173.5,173.42,12.47349524]
[1729830241220,2.8831,173.5,173.45,5.36]
[1729830241415,12.47349524,173.54,173.45,17.83349524]
[1729830241720,2.5696,173.57,173.47,12.47349524]
[1729830241925,337.0,173.59,173.5,12.47349524]
[1729830242125,337.0,173.59,173.51,5.36]
[1729830244328,2.8822,173.56,173.51,5.36]
[1729830246330,12.47349524,173.56,173.47,2.4136]
[1729830246526,12.47349524,173.54,173.48,5.18]
[1729830246924,2.883,173.51,173.48,5.18]
[1729830247224,12.47349524,173.57,173.48,5.18]
[1729830247629,12.47349524,173.59,173.48,17.65349524]
[1729830247822,12.47349524,173.59,173.5,12.47349524]
[1729830248025,2.8822,173.56,173.51,2.8829]
[1729830248220,12.47349524,173.61,173.51,2.8829]
[1729830249024,12.47349524,173.61,173.5,12.47349524]
[1729830249224,2.8821,173.57,173.5,15.35659524]
[1729830249423,12.47349524,173.61,173.5,15.35659524]
[1729830249825,2.8821,173.57,173.5,15.35659524]
[1729830250227,2.8821,173.57,173.5,2.8831]
[1729830250433,2.8822,173.56,173.5,2.8831]
[1729830251022,2.882,173.57,173.51,2.8829]
[1729830251227,22.46224713,173.62,173.48,25.11544713]
[1729830251928,22.46224713,173.62,173.5,2.883]
[1729830252124,22.46224713,173.62,173.48,25.11544713]
[1729830252635,2.8819,173.57,173.51,2.8829]
[1729830253930,22.46224713,173.62,173.48,25.11544713]
[1729830254132,2.8822,173.56,173.5,2.8831]
[1729830255122,2.8819,173.58,173.51,2.8828]
[1729830255523,19.93544713,173.62,173.48,25.11544713]
[1729830255726,2.8815,173.6,173.54,2.8824]
[1729830256021,2.8815,173.6,173.55,5.18]
[1729830256934,2.8815,173.6,173.54,2.8824]
[1729830257234,2.8815,173.6,173.56,5.18]
[1729830258139,2.8811,173.62,173.56,5.18]
[1729830259031,2.8816,173.59,173.55,7.2664]
[1729830259235,4.9514,173.68,173.51,2.4504]
[1729830259236,19.93544713,173.61,173.51,2.4504]
[1729830259441,19.93544713,173.61,173.52,5.18]
[1729830259736,2.8822,173.56,173.53,5.18]
[1729830260136,2.8829,173.51,173.5,62.28]
[1729830260534,2.8829,173.51,173.5,67.46]
[1729830261237,2.8826,173.54,173.5,67.46]
[1729830261442,19.93544713,173.58,173.5,67.46]
[1729830262140,2.8827,173.53,173.5,67.46]
[1729830262929,2.8822,173.56,173.5,67.46]
[1729830263138,19.93544713,173.56,173.5,67.46]
[1729830263933,19.93544713,173.56,173.45,2.5083]
[1729830264135,2.8837,173.47,173.46,5.18]
[1729830264436,19.93544713,173.56,173.46,5.18]
[1729830264640,2.8826,173.53,173.46,5.18]
[1729830264839,19.93544713,173.5,173.43,2.3507]
[1729830265039,19.93544713,173.5,173.43,5.18]
[1729830265234,2.8841,173.44,173.43,5.18]
[1729830267937,5.0727,173.49,173.43,5.18]
[1729830268143,19.93544713,173.47,173.36,19.93544713]
[1729830268334,19.93544713,173.47,173.37,5.18]
[1729830268640,2.8844,173.43,173.37,5.18]
[1729830269646,2.8844,173.43,173.36,22.82074713]
[1729830269834,2.8846,173.42,173.38,5.18]
[1729830271340,2.8846,173.42,173.39,5.18]
[1729830271544,5.0727,173.49,173.39,5.18]
[1729830271749,5.0727,173.49,173.39,25.11544713]
[1729830273353,2.8839,173.46,173.4,2.8846]
[1729830273643,2.8839,173.46,173.39,25.11544713]
[1729830274347,5.0727,173.49,173.39,25.11544713]
[1729830274547,2.8835,173.48,173.42,2.8844]
[1729830274734,356.93544713,173.53,173.39,25.11544713]
[1729830275446,2.8833,173.49,173.43,2.8841]
[1729830275642,337.0,173.56,173.44,5.18]
[1729830275845,0.97906418,173.55,173.44,5.18]
[1729830276040,2.8831,173.5,173.45,2.8839]
[1729830276345,5.18,173.56,173.44,5.18]
[1729830276646,2.8832,173.5,173.44,8.064]
[1729830276850,5.18,173.56,173.44,5.18]
[1729830277043,19.93544713,173.53,173.44,5.18]
[1729830277647,2.8836,173.47,173.44,5.18]
[1729830278446,337.0,173.55,173.45,2.8838]
[1729830278447,2.8831,173.5,173.45,2.8838]
[1729830278838,2.8831,173.5,173.44,8.064]
[1729830281642,337.0,173.55,173.44,5.18]
[1729830281844,19.93544713,173.56,173.44,5.18]
[1729830282246,12.45463626,173.54,173.44,20.51863626]
[1729830282747,12.45463626,173.54,173.44,17.63463626]
[1729830283347,2.8833,173.49,173.44,17.63463626]
[1729830284959,2.8833,173.49,173.44,20.51873626]
[1729830286052,2.8828,173.52,173.47,15.33813626]
[1729830286252,341.8548,173.57,173.48,12.45463626]
[1729830286451,12.45463626,173.56,173.49,5.12]
[1729830286758,12.45463626,173.54,173.47,5.12]
[1729830287255,2.8831,173.5,173.47,5.12]
[1729830288956,12.45463626,173.54,173.47,5.12]
[1729830289260,2.8829,173.51,173.47,5.12]
[1729830289654,2.8827,173.53,173.47,8.0036]
[1729830289861,12.45463626,173.56,173.47,5.12]
[1729830290375,2.883,173.51,173.47,5.12]
[1729830292761,2.8831,173.5,173.47,5.12]
[1729830294260,12.45463626,173.56,173.47,5.12]
[1729830294461,2.883,173.51,173.47,5.12]
[1729830295268,12.45463626,173.52,173.41,2.3702]
[1729830295462,5.12,173.55,173.42,5.12]
[1729830295463,2.8839,173.45,173.42,5.12]
[1729830296166,2.8841,173.44,173.42,5.12]
[1729830296369,339.92016791,173.54,173.42,5.12]
[1729830296370,337.0,173.53,173.42,5.12]
[1729830296566,12.45463626,173.46,173.42,5.12]
[1729830296966,12.45463626,173.46,173.36,12.45463626]
[1729830297167,12.45463626,173.46,173.37,5.12]
[1729830297562,2.8845,173.42,173.36,15.33993626]
[1729830297756,12.45463626,173.48,173.37,5.12]
[1729830298973,2.884,173.45,173.37,8.0052]
[1729830299164,12.45463626,173.48,173.37,8.0052]
[1729830299764,12.45463626,173.48,173.38,2.885]
[1729830300375,12.45463626,173.48,173.37,5.12]
[1729830300578,349.45463626,173.51,173.4,12.45463626]
[1729830300879,337.0,173.51,173.4,12.45463626]
[1729830301581,2.8835,173.48,173.42,2.8843]
[1729830301763,2.8835,173.48,173.43,5.12]
[1729830301965,349.45463626,173.51,173.43,5.12]
[1729830302173,2.8836,173.48,173.43,5.12]
[1729830302874,2.8836,173.48,173.43,8.0041]
[1729830303075,2.8836,173.48,173.43,20.45873626]
[1729830303673,12.45463626,173.53,173.43,17.57463626]
[1729830303870,17.20953626,173.57,173.45,12.45463626]
[1729830305078,2.8828,173.52,173.46,2.8836]
[1729830305369,2.8828,173.52,173.44,7.381]
[1729830305370,17.20953626,173.57,173.47,12.45463626]
[1729830305571,17.20953626,173.57,173.48,4.98]
[1729830305973,2.8824,173.55,173.48,7.8634]
[1729830306180,17.20953626,173.57,173.48,4.98]
[1729830306972,12.45463626,173.57,173.48,4.98]
[1729830307269,12.45463626,173.59,173.5,12.45463626]
[1729830307472,12.45463626,173.59,173.49,12.45463626]
[1729830308261,341.9139,173.62,173.49,12.45463626]
[1729830308467,13.43453312,173.61,173.49,12.45463626]
[1729830308667,12.45463626,173.61,173.49,12.45463626]
[1729830308872,4.9139,173.62,173.54,12.45463626]
[1729830309077,2.3423,173.62,173.55,4.98]
[1729830310464,2.8818,173.58,173.55,4.98]
[1729830310774,2.3423,173.62,173.55,4.98]
[1729830310977,2.8817,173.59,173.55,4.98]
[1729830311274,2.3423,173.62,173.55,4.98]
[1729830311664,337.0,173.66,173.55,4.98]
[1729830311878,12.45463626,173.64,173.55,4.98]
[1729830312773,12.45463626,173.66,173.56,12.45463626]
[1729830312964,2.8812,173.62,173.56,15.33673626]
[1729830313168,12.45463626,173.66,173.56,15.33673626]
[1729830313570,2.8811,173.62,173.56,15.33673626]
[1729830313766,337.0,173.7,173.58,12.45463626]
[1729830313975,337.0,173.7,173.61,12.45463626]
[1729830314272,337.0,173.7,173.57,12.45463626]
[1729830314273,337.0,173.7,173.63,12.45463626]
[1729830314472,12.45463626,173.73,173.64,7.8608]
[1729830314778,5.1408,173.74,173.65,12.45463626]
[1729830315283,349.45463626,173.77,173.67,12.45463626]
[1729830315578,12.45463626,173.77,173.67,12.45463626]
[1729830315877,2.8791,173.74,173.65,7.2345]
[1729830316071,2.8791,173.74,173.68,2.8801]
[1729830316267,2.3559,173.78,173.69,17.43463626]
[1729830316473,2.3559,173.78,173.7,4.98]
[1729830316679,12.45463626,173.79,173.7,4.98]
[1729830317679,2.8788,173.76,173.7,4.98]
[1729830317876,12.45463626,173.81,173.72,12.45463626]
[1729830318076,2.8784,173.79,173.72,15.33403626]
[1729830318471,2.5264,173.82,173.72,15.33403626]
[1729830318670,2.5264,173.82,173.74,12.45463626]
[1729830318875,12.45463626,173.84,173.75,4.98]
[1729830319072,2.8783,173.79,173.75,4.98]
[1729830319378,12.45463626,173.82,173.76,4.98]
[1729830319775,2.8781,173.81,173.76,4.98]
[1729830320080,12.45463626,173.82,173.76,4.98]
[1729830320275,12.45463626,173.79,173.7,62.24]
[1729830320473,2.8791,173.75,173.7,62.24]
[1729830320667,2.8791,173.75,173.71,4.98]
[1729830323280,2.8789,173.76,173.71,4.98]
[1729830323786,2.8791,173.75,173.71,4.98]
[1729830324281,2.8791,173.75,173.71,17.43463626]
[1729830325072,2.8791,173.75,173.72,4.98]
[1729830325267,4.8261,173.81,173.72,4.98]
[1729830325268,2.8793,173.73,173.72,4.98]
[1729830327075,12.45463626,173.76,173.65,19.68913626]
[1729830327283,12.45463626,173.76,173.66,4.98]
[1729830327669,2.8797,173.71,173.66,4.98]
[1729830328076,2.8797,173.71,173.67,4.98]
[1729830328376,12.45463626,173.76,173.67,4.98]
[1729830328688,12.45463626,173.74,173.68,4.98]
[1729830328981,2.8796,173.72,173.68,4.98]
[1729830329174,12.45463626,173.74,173.68,4.98]
[1729830329576,2.8799,173.7,173.68,4.98]
[1729830330180,2.8799,173.69,173.68,4.98]
[1729830332079,12.45463626,173.74,173.68,4.98]
[1729830332282,349.45463626,173.78,173.68,17.43463626]
[1729830332477,12.45463626,173.78,173.68,17.43463626]
[1729830333179,349.45463626,173.8,173.7,12.45463626]
[1729830334585,2.8786,173.77,173.7,12.45463626]
[1729830334886,349.45463626,173.8,173.7,12.45463626]
[1729830335177,2.879,173.75,173.7,12.45463626]
[1729830336575,349.45463626,173.8,173.7,12.45463626]
[1729830336781,2.8794,173.73,173.71,4.9]
[1729830336978,2.8794,173.73,173.72,4.9]
[1729830341084,12.45463626,173.76,173.66,12.45463626]
[1729830341280,341.9,173.8,173.51,2.65895604]
[1729830341281,12.45463626,173.72,173.51,2.65895604]
[1729830341481,12.45463626,173.66,173.56,12.45463626]
[1729830341687,12.45463626,173.66,173.57,4.9]
[1729830342088,2.881,173.63,173.57,4.9]
[1729830342594,2.881,173.63,173.58,12.45463626]
[1729830344002,2.881,173.63,173.57,4.9]
[1729830344612,12.45463626,173.64,173.53,2.3954]
[1729830344906,12.45463626,173.64,173.54,4.9]
[1729830345098,7.4268,173.7,173.53,7.2954]
[1729830345099,12.45463626,173.61,173.53,7.2954]
[1729830345404,17.35463626,173.61,173.41,2.65895604]
[1729830345603,12.45463626,173.58,173.42,4.9]
[1729830345910,12.45463626,173.58,173.46,15.33843626]
[1729830345911,2.8827,173.53,173.46,15.33843626]
[1729830346802,2.8828,173.52,173.46,15.33843626]
[1729830347104,2.8828,173.52,173.47,4.9]
[1729830347310,2.8826,173.53,173.47,7.7836]
[1729830347605,2.8826,173.53,173.47,10.2106]
[1729830348007,12.45463626,173.58,173.47,7.327]
[1729830348212,2.8824,173.54,173.48,2.8834]
[1729830348509,12.45463626,173.58,173.48,12.45463626]
[1729830348801,12.45463626,173.58,173.48,14.96293626]
[1729830349005,2.8823,173.55,173.48,14.96293626]
[1729830349398,337.0,173.59,173.48,14.96293626]
[1729830349710,20.09273626,173.6,173.5,12.45463626]
[1729830350007,17.49183626,173.6,173.51,4.9]
[1729830350711,5.0372,173.6,173.51,4.9]
[1729830351111,2.8816,173.6,173.52,2.8826]
[1729830351407,12.45463626,173.61,173.52,2.8826]
[1729830352009,12.45463626,173.63,173.53,2.8824]
[1729830352208,12.45463626,173.63,173.52,12.45463626]
[1729830353305,2.8814,173.6,173.54,2.8823]
[1729830353612,12.45463626,173.65,173.55,4.9]
[1729830353815,2.881,173.63,173.57,15.33653626]
[1729830354316,17.35463626,173.68,173.57,12.45463626]
[1729830354716,2.8809,173.64,173.59,2.8816]
[1729830354912,2.8809,173.64,173.6,4.9]
[1729830356803,12.45463626,173.68,173.6,4.9]
[1729830357707,2.8809,173.64,173.6,4.9]
[1729830358612,12.45463626,173.68,173.6,4.9]
[1729830358912,2.8803,173.67,173.61,2.8813]
[1729830359613,2.5909,173.71,173.63,2.8809]
[1729830359815,15.03493626,173.72,173.64,4.9]
[1729830360705,2.8801,173.69,173.64,4.9]
[1729830361613,15.03493626,173.72,173.64,4.9]
[1729830361817,2.8804,173.67,173.64,4.9]
[1729830362007,15.03493626,173.72,173.64,4.9]
[1729830362613,2.8802,173.68,173.64,4.9]
[1729830365715,2.88,173.69,173.64,4.9]
[1729830366220,15.03493626,173.72,173.64,4.9]
[1729830366410,2.8799,173.7,173.64,4.9]
[1729830366715,12.45463626,173.74,173.65,12.45463626]
[1729830366914,12.45463626,173.76,173.67,12.45463626]
[1729830367220,12.45463626,173.76,173.68,4.94]
[1729830367419,12.45463626,173.76,173.68,7.8201]
[1729830367714,12.45463626,173.76,173.68,4.94]
[1729830368316,2.8792,173.74,173.68,7.8201]
[1729830369715,2.8793,173.73,173.68,7.8201]
[1729830369912,2.8793,173.73,173.68,4.94]
[1729830372117,12.45463626,173.76,173.68,4.94]
[1729830373115,2.8793,173.73,173.68,7.8201]
[1729830373723,2.8796,173.72,173.68,4.94]
[1729830373913,12.45463626,173.72,173.65,2.5705]
[1729830374114,2.4306,173.77,173.63,2.3738]
[1729830374115,12.45463626,173.69,173.66,4.94]
[1729830374419,2.8803,173.67,173.66,4.94]
[1729830377923,12.45463626,173.69,173.6,17.40553626]
[1729830378123,2.8806,173.66,173.61,4.94]
[1729830378525,2.8809,173.64,173.59,62.22]
[1729830378729,12.45463626,173.67,173.6,4.94]
[1729830379126,12.45463626,173.67,173.61,4.94]
[1729830379925,12.45463626,173.67,173.59,62.22]
[1729830380132,2.8806,173.65,173.6,4.94]
[1729830380929,2.8808,173.64,173.6,4.94]
[1729830383128,12.45463626,173.67,173.6,4.94]
[1729830383332,2.881,173.63,173.6,4.94]
[1729830383537,12.45463626,173.67,173.6,4.94]
[1729830383841,2.8812,173.62,173.6,4.94]
[1729830384149,12.45463626,173.69,173.6,4.94]
[1729830384331,2.8808,173.64,173.6,17.39463626]
[1729830384637,12.45463626,173.71,173.6,17.39463626]
[1729830384837,2.8804,173.67,173.61,2.8813]
[1729830385235,12.45463626,173.71,173.6,17.39463626]
[1729830385438,2.8802,173.68,173.6,20.27593626]
[1729830385633,12.45463626,173.71,173.6,17.39463626]
[1729830386144,12.45463626,173.71,173.61,2.8813]
[1729830386739,2.8803,173.68,173.62,15.33573626]
[1729830387638,2.8803,173.67,173.62,15.33573626]
[1729830388544,2.8804,173.67,173.6,4.94]
[1729830388841,12.45463626,173.69,173.6,17.39463626]
[1729830389045,349.45463626,173.71,173.6,17.39463626]
[1729830389743,2.8801,173.69,173.62,15.33563626]
[1729830389934,349.45463626,173.71,173.6,17.39463626]
[1729830390938,2.8803,173.67,173.62,2.881]
[1729830391142,2.8803,173.67,173.6,17.39463626]
[1729830391545,2.8804,173.66,173.61,2.8812]
[1729830391939,12.45463626,173.69,173.6,17.39463626]
[1729830392846,2.8808,173.65,173.6,17.39463626]
[1729830394050,2.8808,173.64,173.6,17.39463626]
[1729830394842,2.8808,173.64,173.6,20.27603626]
[1729830397047,2.881,173.63,173.6,20.27603626]
[1729830398055,12.45463626,173.69,173.6,4.94]
[1729830398553,2.881,173.63,173.6,4.94]
[1729830399250,12.45463626,173.69,173.6,4.94]
[1729830399447,2.8809,173.64,173.6,4.94]
[1729830399649,12.45463626,173.69,173.6,4.94]
[1729830400249,5.0141,173.72,173.6,17.39463626]
[1729830400250,12.45463626,173.71,173.6,17.39463626]
[1729830400850,12.45463626,173.71,173.61,2.8813]
[1729830401046,12.45463626,173.71,173.6,17.39463626]
[1729830401253,12.45463626,173.71,173.6,20.27593626]
[1729830401856,2.8806,173.66,173.6,20.27593626]
[1729830404256,12.45463626,173.71,173.6,20.27593626]
[1729830404457,2.8806,173.65,173.6,20.27593626]
[1729830407861,2.8806,173.65,173.6,17.39463626]
[1729830408064,2.8806,173.65,173.61,2.8813]
[1729830408263,2.8806,173.65,173.63,7.96613204]
[1729830408565,2.8806,173.65,173.64,4.88]
[1729830410264,7.96613204,173.68,173.64,4.88]
[1729830410656,2.8798,173.7,173.64,4.88]